Cogmind - Beta 17 @@@ ROGUE MODE // 2026.07.06 @ 15:58:46 Player: Anaraus Result: Destroyed by Y-45 Defender with Beam Rifle Performance ------------- Evolutions (1) 500 Regions Visited (2) 400 Robots Destroyed (30) 150 Value Destroyed (696) 696 Prototype IDs (0) 0 Alien Tech Used (0) 0 Bonus (0) 0 TOTAL SCORE: 1746 Bonus ------- None Cogmind --------- Core Integrity 0/400 Matter 295/300 Energy 100/100 System Corruption 0% Temperature Cool (9) Movement Core (350) Ox6 Location -9/Materials Parts ------- > --- POWER (2) -------- (None) > --- PROPULSION (2) --- (None) > --- UTILITY (3) ------ Large Storage Unit > --- WEAPON (2) ------- (None) > --- INVENTORY (15) --- Medium Matter Pod (11) Medium Matter Pod (0) Terrain Scan Processor Improved Targeting Computer Actuator Array ECM Suite Improved Datajack Peak State ------------ > --- POWER ------------ Ion Engine Light Nuclear Core > --- PROPULSION ------- Aluminum Leg Aluminum Leg > --- UTILITY ---------- Large Storage Unit Seismic Detector Light Armor Plating > --- WEAPON ----------- Shock Rifle Shock Rifle > --- INVENTORY -------- Medium Matter Pod Terrain Scan Processor Improved Targeting Computer Actuator Array ECM Suite Shock Rifle Shock Rifle Assault Rifle Grenade Launcher Improved Datajack [Rating: 17] Favorites ----------- Power Light Ion Engine Engine Light Ion Engine Power Core Light Nuclear Core Propulsion Aluminum Leg Leg Aluminum Leg Wheel Wheel Utility Large Storage Unit Device Seismic Detector Storage Large Storage Unit Processor Terrain Scan Processor Protection Light Armor Plating Weapon Assault Rifle Energy Gun Shock Rifle Ballistic Gun Assault Rifle Ballistic Cannon Light Cannon Launcher Grenade Launcher Build | -11 -10 -9 ------- Run | Yrd Mat Mat Slots Evolved 2 | . . 2 Power 1 | . . 1 Propulsion . | . . . Utility 1 | . . 1 Weapon . | . . . Parts Attached 30 | 9 11 10 Power 4 | 1 2 1 Engine 3 | 1 1 1 Core 1 | . 1 . Reactor . | . . . Propulsion 7 | 4 1 2 Treads . | . . . Leg 3 | 2 1 . Wheel 4 | 2 . 2 Hover . | . . . Flight . | . . . Utility 8 | 2 5 1 Device 4 | 1 2 1 Storage 2 | 1 1 . Processor 1 | . 1 . Hackware . | . . . Protection 1 | . 1 . Artifact . | . . . Weapon 11 | 2 3 6 Energy Gun 5 | . . 5 Energy Cannon . | . . . Ballistic Gun 3 | 2 1 . Ballistic Cannon 1 | . 1 . Launcher 2 | . 1 1 Special Weapon . | . . . Impact Weapon . | . . . Slashing Weapon . | . . . Piercing Weapon . | . . . Special Melee Weapon . | . . . Unidentified Prototypes . | . . . Parts Lost 21 | . 8 13 Power 4 | . 2 2 Propulsion 4 | . 2 2 Utility 4 | . 2 2 Weapon 9 | . 2 7 Highest Loss Streak 7 | . 4 7 To Critical Strikes . | . . . Average Backups 5 | 4 5 7 Power . | . . . Propulsion . | 1 . . Utility 2 | . 3 4 Weapon 1 | 1 1 1 Tool/Special . | . . . Unused Backups 13 | 1 5 7 Power . | . . . Propulsion 1 | 1 . . Utility 9 | . 3 6 Weapon 2 | . 2 . Tool/Special 1 | . . 1 Average Slot Usage (%) 84 | . 84 84 Engine 7 | . 6 8 Core 5 | . 4 8 Leg 17 | . 19 14 Wheel 3 | . 3 3 Device 7 | . 6 10 Storage 12 | . 13 11 Protection 5 | . 4 8 Energy Gun 2 | . . 7 Ballistic Gun 13 | . 16 6 Ballistic Cannon 2 | . 3 . Launcher 5 | . 5 4 Peak Build Rating 17 | 9 9 17 Average Rating 8 | 6 7 11 On Entrance 5 | . 9 6 Avg Prop Armor Cover (%) . | . . . Naked Turns . | . . . Heaviest Build 40 | 9 32 40 Greatest Support 20 | 20 20 20 Greatest Overweight (x) 8 | . 3 8 Average Overweight (x) . | . . 1 Largest Inventory Capacity 15 | 5 15 15 Average Capacity 11 | 5 12 15 Most Carried 12 | 5 9 12 Average Carried 5 | 4 5 7 Final Capacity 15 | 5 15 15 Final Carried 7 | 5 7 7 Class Distribution -------------------- 98% | Mutant Dominant Class ---------------- Mutant | -10/Materials Mutant | -9/Materials Resources | -11 -10 -9 ----------- Run | Yrd Mat Mat Matter Collected 1001 | 351 334 316 Remotely . | . . . Salvage Created 804 | 79 411 314 Parts 60 | 8 29 23 Haulers Intercepted . | . . . Recyclers Shooed . | . . . Parts Field Recycled . | . . . Retrieved Matter . | . . . Parts Self-Destructed . | . . . Prevented . | . . . Parts Restored . | . . . Kills | -11 -10 -9 ------- Run | Yrd Mat Mat Combat Hostiles Destroyed 15 | 1 7 7 Guns 8 | 1 5 2 Cannons 1 | . 1 . AOE 6 | . 1 5 Classes Destroyed 8 | 3 3 2 Worker 2 | 1 1 . Builder 4 | . 3 1 Tunneler 1 | 1 . . Recycler 1 | . 1 . Watcher 7 | . 3 4 Swarmer 3 | . . 3 Grunt 10 | 1 7 2 Sentry 2 | . . 2 Best Kill Streak 6 | 2 6 4 Combat Bots Only 4 | 1 3 4 Max Kills in Single Turn 3 | 1 2 3 Gunslinging . | . . . Exploded 3 | . 1 3 Melee . | . . . Uniques/NPCs Destroyed . | . . . Combat | -11 -10 -9 -------- Run | Yrd Mat Mat Hostile Shots Fired 193 | 5 58 130 Missed 61 | 1 19 41 Hits 132 | 4 39 89 Projectile 132 | 4 39 89 Critical Strikes 5 | . 1 4 Damage Taken 2241 | 45 934 1262 Core 601 | 12 188 401 Absorbed by Shields . | . . . Core Remaining (%) 57 | 95 20 . Volleys Fired 96 | 9 36 51 Largest 2 | 2 2 2 Hottest 115 | 40 60 115 Shots Fired 153 | 18 63 72 Gun 133 | 18 45 70 Cannon 8 | . 8 . Launcher 12 | . 10 2 Special . | . . . Kinetic 98 | 18 53 27 Thermal 8 | . . 8 Explosive 12 | . 10 2 Electromagnetic 35 | . . 35 Robot Hit Streak 10 | 4 10 8 Robot Miss Streak 7 | 4 2 7 Penetration Max . | . . . Secondary Targets . | . . . Shots Hit Robots 92 | 8 45 39 Core Hits 48 | 3 27 18 Critical Kills . | . . . Critical Parts Destroyed . | . . . Critical Strikes 1 | . . 1 Corrupt 1 | . . 1 Melee Attacks . | . . . Impact . | . . . Slashing . | . . . Piercing . | . . . Sneak Attacks . | . . . Combat Hostiles . | . . . Follow-up Attacks . | . . . Damage Inflicted 2449 | 99 1293 1057 Guns 1120 | 99 392 629 Cannons 88 | . 88 . Explosions 1241 | . 813 428 Melee . | . . . Ramming . | . . . Kinetic 772 | 99 480 193 Thermal 322 | . . 322 Explosive 1015 | . 813 202 Electromagnetic 340 | . . 340 Impact . | . . . Slashing . | . . . Piercing . | . . . Highest Corruption 7 | . 7 . Average Corruption 6 | . 6 . Corruption Purged . | . . . Corruption Blocked . | . . . Effects 10 | . 10 . Message Errors 4 | . 4 . Matter Fused 2 | . 2 . Energy Discharges 1 | . 1 . Data Loss (minor) 2 | . 2 . Weapon Failures 1 | . 1 . Overload Shots . | . . . Overflow Damage 52 | . 35 17 Projectiles . | . . . Explosions 52 | . 35 17 Melee . | . . . Knockbacks . | . . . Impact . | . . . Kinetic . | . . . Secondary . | . . . Self-Inflicted Damage 242 | . 159 83 Shots 6 | . 3 3 Rammed . | . . . Targets Rammed . | . . . Kicked . | . . . Crushed . | . . . Highest Temperature 415 | . 37 415 Average Temperature 87 | . 8 95 Received Heat Transfer 870 | 24 282 564 Effects 1 | . . 1 Matter Decay 1 | . . 1 Siege Activations . | . . . Martial Activations . | . . . Shielding Activations . | . . . Robots Disrupted . | . . . Combat Hostiles . | . . . Robots Corrupted . | . . . Combat Hostiles . | . . . Parts Fried . | . . . Impact Corruptions . | . . . Robots Melted . | . . . Combat Hostiles . | . . . Parts Melted . | . . . Heat Transferred 472 | . . 472 Parts Sabotaged . | . . . Parts Stolen . | . . . Parts Stripped . | . . . Power Chain Reactions 2 | . . 2 Alert | -11 -10 -9 ------- Run | Yrd Mat Mat Maximum Alert Level . | . . . Low Security (%) 100 | 100 100 100 Level 1 . | . . . Level 2 . | . . . Level 3 . | . . . Level 4 . | . . . Level 5 . | . . . High Security . | . . . Max Security . | . . . Peak Influence 132 | 25 132 95 Initial . | . . . Average 35 | 2 48 37 Influence Increases 679 | 30 367 282 Destroy 0b10 Robot/C 300 | 20 140 140 Destroy 0b10 Robot/NC 75 | 10 40 25 Destroy Leader 94 | . 46 48 Successful Hack 2 | . 2 . Disable Machine 75 | . 60 15 Destroy Structure 88 | . 79 9 Lose Combat Pursuer 45 | . . 45 Influence Decreases 675 | 30 367 278 Time Decay 465 | 30 287 148 Lost Part 210 | . 80 130 Squads Dispatched 2 | . 2 . Investigation 1 | . 1 . Extermination . | . . . Reinforcement 1 | . 1 . Assault . | . . . Garrison . | . . . Intercept . | . . . Searches Triggered . | . . . Construction Impeded . | . . . Haulers Reinforced . | . . . Active Scanning Responses . | . . . Cargo Convoy Interrupts . | . . . Stealth | -11 -10 -9 --------- Run | Yrd Mat Mat Distress Signals 5 | . 2 3 Communications Jammed . | . . . Distress Signals . | . . . Times Spotted 39 | 1 13 25 Peak Tracking Total 6 | 1 4 6 Tactical Retreats 1 | . . 1 Traps | -11 -10 -9 ------- Run | Yrd Mat Mat Traps Triggered 3 | . 3 . Indirectly . | . . . Trap Hack Attempts . | . . . Triggered . | . . . Disarmed . | . . . Reprogrammed . | . . . Reused . | . . . Traps Extracted . | . . . Installed . | . . . Triggered . | . . . Machines | -11 -10 -9 ---------- Run | Yrd Mat Mat Machines Disabled 5 | . 4 1 Max in Single Turn 1 | . 1 1 Machines Repaired . | . . . Machines Dismantled . | . . . Machines Sabotaged . | . . . Overloaded Fab Kills . | . . . Hacking | -11 -10 -9 --------- Run | Yrd Mat Mat Machines Accessed 2 | . 2 . Terminals 1 | . 1 . Fabricators . | . . . Repair Stations . | . . . Recycling Units 1 | . 1 . Scanalyzers . | . . . Garrison Access . | . . . Total Hacks 8 | . 8 . Successful 6 | . 6 . Failed 2 | . 2 . Catastrophic . | . . . Database Lockouts . | . . . Manual . | . . . Terminals 3 | . 3 . Fabricators . | . . . Repair Stations . | . . . Recycling Units 5 | . 5 . Scanalyzers . | . . . Garrison Access . | . . . Terminal Hacks 2 | . 2 . Record 2 | . 2 . Fabricator Hacks . | . . . Repair Station Hacks . | . . . Recycling Unit Hacks 4 | . 4 . Recycle Component 3 | . 3 . Process 1 | . 1 . Scanalyzer . | . . . Garrison Access Hacks . | . . . Unauthorized Hacks . | . . . Terminals . | . . . Fabricators . | . . . Repair Stations . | . . . Recycling Units . | . . . Scanalyzers . | . . . Garrison Access . | . . . Data Cores Recovered . | . . . Used . | . . . Hacking Detections 2 | . 2 . Full Trace Events 1 | . 1 . Feedback Events . | . . . Feedback Blocked . | . . . Robot Schematics Acquired . | . . . Robots Built . | . . . Authchips . | . . . Time . | . . . Total Robot Build Rating . | . . . Part Schematics Acquired . | . . . Parts Built . | . . . Authchips . | . . . Time . | . . . Total Part Build Rating . | . . . Part Studies Acquired . | . . . Parts Repaired . | . . . Time . | . . . Parts Recycled 3 | . 3 . Recycled Matter 185 | . 185 . Retrieved Matter . | . . . Retrieved Components . | . . . Parts Scanalyzed . | . . . Part Schematics Acquired . | . . . Parts Damaged . | . . . Bothacking | -11 -10 -9 ------------ Run | Yrd Mat Mat Used RIF Installer . | . . . Robots Hacked . | . . . Non-combat . | . . . Combat . | . . . Robot Hacks Applied . | . . . Relay Couplers Released . | . . . Fabnet Peak Effective % . | . . . Robots Rewired . | . . . Allies Hacked . | . . . Hacks Repelled . | . . . Allies | -11 -10 -9 -------- Run | Yrd Mat Mat Total Allies . | . . . Largest Group . | . . . Highest-Rated Group . | . . . Highest-Rated Ally . | . . . Total Orders . | . . . Ally Attacks . | . . . Total Damage . | . . . Kills . | . . . Allies Corrupted . | . . . Allies Melted . | . . . Intel | -11 -10 -9 ------- Run | Yrd Mat Mat Active Infowar (turns) 820 | 163 297 360 Terrain 249 | 163 86 . Structural 211 | . 211 . Seismic 360 | . . 360 Robot Analysis Total . | . . . Derelict Logs Recovered . | . . . Drone Launches . | . . . Drone Recoveries . | . . . Exploration | -11 -10 -9 ------------- Run | Yrd Mat Mat Turns Passed 1485 | 341 760 384 Spaces Moved 769 | 281 360 128 Core 34 | 22 5 7 Treads . | . . . Legs 444 | 63 297 84 Wheels 291 | 196 58 37 Hover . | . . . Flight . | . . . Fastest Speed 50 | 50 80 95 Average Speed 142 | 86 173 176 Slowest Speed 450 | 120 260 450 Overloaded Moves . | . . . Propulsion Burnouts . | . . . Robots Hopped . | . . . Potential Cave-ins 3 | . 3 . Cave-ins Triggered 1 | . 1 . Exploration Rate (%) 29 | 9 64 16 Regions Visited 2 Branch Regions . Pre-discovered Areas . | . . . Known Exits Taken . | . . . Unknown Exits Taken 2 | 1 1 . Scrap Searched . | . . . Spaces Dug . | . . . Terrain Destroyed 124 | . 115 9 Melee . | . . . Projectile . | . . . AOE 124 | . 115 9 Terrain Rammed . | . . . Walls Destroyed . | . . . Machines Disabled . | . . . Actions | -11 -10 -9 --------- Run | Yrd Mat Mat Total 1011 | 362 436 213 Wait 44 | 38 . 6 Move 767 | 280 359 128 Hop . | . . . Pick Up 46 | 15 20 11 Fast Attach . | . . . Attach 31 | 11 11 9 Detach 5 | 4 1 . Swap 10 | 2 2 6 Drop 12 | 3 7 2 Fire 96 | 9 36 51 Melee . | . . . Ram . | . . . Kick . | . . . Crush . | . . . Escape Stasis . | . . . Rewire . | . . . Trap . | . . . Miscellaneous . | . . . Route ------- -11/Scrapyard -10/Materials (discovered 2 exits: [*Mat] / [*Min]) -9/Materials History --------- Turn | Location | Event 2 | -11/Scrapyard | Met Revision 17 149 | -11/Scrapyard | Discovered new exit (range 8) 342 | -11/Scrapyard | Entered Materials 343 | -10/Materials | Build established: Mutant 462 | -10/Materials | Lost 4 parts (1p2n1u) 707 | -10/Materials | Crushed by falling debris 707 | -10/Materials | Core integrity fell below 50% 738 | -10/Materials | Lost 4 parts (1p1u2w) 877 | -10/Materials | Discovered new exit (range 12) 1035 | -10/Materials | Discovered new exit (range 11) 1102 | -10/Materials | Entered another Materials area 1102 | -9/Materials | Evolved 2 slots: Power x1, Utility x1 1426 | -9/Materials | Lost 6 parts (2p1n1u2w) 1444 | -9/Materials | Core integrity fell below 50% 1478 | -9/Materials | Core integrity fell below 20% 1486 | -9/Materials | Destroyed by Y-45 Defender with Beam Rifle Last Messages --------------- for future runs. U-05 Engineer lays Concrete. Shock Rifle destroyed. Seismic Detector destroyed. U-05 Engineer lays Concrete. Critical hit (Burn: +37). U-05 Engineer lays Concrete. M-13 Machinist repairs Y-45 Defender. U-05 Engineer lays Concrete. Shock Rifle destroyed. U-05 Engineer lays Concrete. U-05 Engineer builds a Wall. M-13 Machinist repairs G-34 Mercenary Heat Sink. U-05 Engineer builds a Wall. U-05 Engineer lays Concrete. U-05 Engineer builds a Wall. U-05 Engineer lays Concrete. U-05 Engineer destroyed. U-05 Engineer lays Concrete. [Achievement: First Step to Greatness] Map ----- +----------------------------------------------------+ | ????????????????????????????#// !!#?# | | ????????????????????????????#/ !#?# | | ????????????????????????????# #?# | | ????????????????????????????#### ### | | ???????????????????????????????# === | | ???????????????????????????????# === | | ???????????????????????????????# === | | ???????????????????????????????# | | ???????????????????????????????# | | ????????????????# ######+####### | | ????????????????? | | ????????????????? | | ????????????????? " | | ??????????????????#### "" | | ?????????????????????# "" ######/## | | ????????#????????????# """ #????? | | ????????# ??########## #??????"" | | ????????# ??## | # #??????T" | | ????????# ?## ] # " #???????? | | ???????## ## # "" #???????? | | ???????# # u #=! " #???????? | | ???????# #Yu[ m # *= #???????? | | ???????+ #Y=g" +%[ #???????? | | ???????# %*! # #???????? | | ???????# #! # #???????? | | ???????####### !@[ ######### #???????? | | ????????????# /[ #???????# #???????? | | ????????????## /[[ #???????# #???????? | | ?????????????#########???????# #???????? | | ?????????????????????????????# #???????? | | ?????????????????????????????+ #???????? | | ?????????????????????????????? #???????? | | ?????????????????????????????? #???????? | | ?????????????????????????????? #???????? | | ?????????????????????????????? ????????? | | ?????????????????????????????????????????? | | ?????????????????????????????????????????? | | ?????????????????????????????????????????? | | ?????????????????????????????????????????? | | ?????????????????????????????????????????? | | ?????????????????????????????????????????? | | ?????????????????????????????????????????? | | ?????????????????????????????????????????? | | ?????????????????????????????????????????? | | ?????????????????????????????????????????? | | ?????????????????????????????????????????? | | ?????????????????????????????????????????? | | ?????????????????????????????????????????? | | ?????????????????????????????????????????? | | ?????????????????????????????????????????? | +----------------------------------------------------+ Best States ------------- Heat Dissipation 39 Energy Generation 19 Energy Capacity 310 Matter Stores 300 Matter Capacity 350 Sight Range 16 Terrain Scan Range 16 Terrain Scan Density 85 Armor Coverage 150 Evasion (%) 55 Item Schematics ----------------- None Robot Schematics ------------------ None Fabricated ------------ Nothing Repaired ---------- Nothing Studied --------- None Alien Tech Used ----------------- None Achievements -------------- Crack Shot First Step to Greatness Hydra I Have A Map? Let's See Who's Tougher Organ Harvest Overwhelming Storm Trooper There's More Where That Came From Uninvited Guest Unlikely Earthworm Challenges ------------ None Game ------ Seed QuantumDispersalDrivehammer Manual? 0 Play Time 00:43:58 Cumulative 0.7 hours Start 2026.07.06 @ 15:08:57 End 2026.07.06 @ 15:58:46 Sessions 1 Manual Loads 0 Difficulty Rogue Special Mode None Game No. 1 Rogue 1 Adventurer 0 Explorer 0 Win Type - Total 0 Types 0/0/0/0/0/0/0/0/0/0 Lore% 0 Gallery% 1 Achievement% 2 Wizard Run 0 Options --------- Layout 1 ASCII 0 Keyboard 0 Movement Mouse Keybinds 0 Fullscreen 1 Font 32/SmallcapsGlow Map View 77x35 Zoom Use 0% Tactical HUD 0 Map Filters NONE Filters NONE Steam 1 RUN: f9219aef-e92b-495d-8d21-1d71d987762f